bitfinex-derivatives/quotes_SOLF0:USTF0_20250720
["timestamp","ask_amount","ask_price","bid_price","bid_amount"]
[1752972101003,0.03974753,177.26,177.23,5.6392]
[1752972101202,0.03974753,177.26,177.24,3.27]
[1752972101801,0.03974753,177.26,177.25,8.9087]
[1752972102500,1.89029836,177.33,177.29,3.27]
[1752972102699,3.09,177.32,177.29,3.27]
[1752972102899,5.637,177.31,177.29,3.27]
[1752972103598,8.7265,177.32,177.3,3.27]
[1752972105104,10.61659836,177.33,177.31,3.27]
[1752972105311,3.09,177.33,177.31,3.27]
[1752972105706,8.7262,177.33,177.31,3.27]
[1752972108407,8.7262,177.33,177.28,0.03780316]
[1752972108408,4.98029836,177.35,177.29,3.27]
[1752972108609,3.09,177.35,177.29,3.27]
[1752972109502,5.6359,177.34,177.31,5.6366]
[1752972109806,3.09,177.33,177.32,3.27]
[1752972110702,3.09,177.33,177.31,3.12]
[1752972110909,3.02,177.32,177.31,3.12]
[1752972111107,3.02,177.33,177.31,3.12]
[1752972114305,8.6567,177.32,177.29,3.12]
[1752972114508,3.02,177.31,177.3,3.12]
[1752972114910,8.6564,177.32,177.31,3.12]
[1752972116603,3.02,177.32,177.31,3.12]
[1752972118717,5.6362,177.33,177.31,3.12]
[1752972119016,1.89029836,177.36,177.31,3.12]
[1752972119213,3.02,177.35,177.31,3.12]
[1752972119413,8.6557,177.35,177.31,8.7566]
[1752972119609,8.6557,177.35,177.32,3.12]
[1752972120924,3.02,177.38,177.34,3.12]
[1752972121624,8.6546,177.38,177.35,3.12]
[1752972121824,3.02,177.38,177.35,3.12]
[1752972122025,3.02,177.37,177.35,3.12]
[1752972122924,8.6547,177.38,177.35,5.6354]
[1752972123125,4.91029836,177.39,177.36,3.12]
[1752972123321,10.54469836,177.39,177.36,3.12]
[1752972124043,10.54429836,177.4,177.36,8.755]
[1752972124225,4.91029836,177.4,177.37,3.12]
[1752972124426,1.89029836,177.4,177.37,3.12]
[1752972124628,8.6542,177.39,177.37,3.12]
[1752972124824,8.6542,177.39,177.35,5.6352]
[1752972125028,3.02,177.38,177.36,3.12]
[1752972125724,147.67894995,177.41,177.37,3.12]
[1752972125923,3.02,177.39,177.37,3.12]
[1752972126221,144.65894995,177.41,177.34,0.03703521]
[1752972126222,1.89029836,177.4,177.35,3.12]
[1752972126428,1.89029836,177.4,177.34,0.03703521]
[1752972126622,1.89029836,177.4,177.37,3.12]
[1752972126925,8.6545,177.38,177.37,3.12]
[1752972128522,3.02,177.39,177.37,3.12]
[1752972129320,3.02,177.39,177.38,3.12]
[1752972129521,8.6542,177.39,177.38,3.12]
[1752972130622,5.6346,177.38,177.35,3.12]
[1752972130819,3.02,177.37,177.35,3.12]
[1752972131526,5.6346,177.38,177.35,3.12]
[1752972131727,8.6546,177.38,177.35,3.12]
[1752972132027,8.6549,177.37,177.36,3.12]
[1752972133425,3.02,177.35,177.34,3.15703521]
[1752972133720,4.91029836,177.35,177.34,0.03703521]
[1752972134027,10.54579836,177.35,177.34,3.15703521]
[1752972135128,5.6364,177.32,177.28,202.93320961]
[1752972135327,8.6564,177.32,177.31,3.12]
[1752972137928,8.6571,177.3,177.29,3.12]
[1752972138128,10.54739836,177.3,177.29,3.12]
[1752972139130,4.91029836,177.3,177.29,3.12]
[1752972139928,10.54739836,177.3,177.29,3.12]
[1752972140733,3.01,177.29,177.28,205.99320961]
[1752972141933,8.6474,177.29,177.28,205.99320961]
[1752972142132,3.01,177.29,177.28,205.99320961]
[1752972143332,8.6468,177.31,177.29,3.06]
[1752972143533,1.89029836,177.3,177.28,202.93320961]
[1752972144138,1.89029836,177.3,177.29,3.06]
[1752972145331,4.90029836,177.32,177.29,3.06]
[1752972146733,4.90029836,177.3,177.26,103.12]
[1752972147338,4.90029836,177.3,177.27,3.06]
[1752972149136,1.89029836,177.3,177.27,3.06]
[1752972151536,10.53689836,177.32,177.27,8.698]
[1752972151737,7.52689836,177.32,177.28,3.06]
[1752972151936,10.53689836,177.32,177.28,3.06]
[1752972152243,5.6368,177.31,177.28,3.06]
[1752972152836,10.53679836,177.32,177.28,3.06]
[1752972153043,1.89029836,177.32,177.28,3.06]
[1752972153434,0.04322967,177.33,177.29,3.06]
[1752972153631,0.04322967,177.33,177.31,3.06]
[1752972153833,0.04322967,177.33,177.32,3.06]
[1752972154047,0.04322967,177.33,177.32,8.6964]
[1752972154541,0.04322967,177.33,177.32,3.06]
[1752972154936,3.05322967,177.33,177.32,3.06]
[1752972155938,3.01,177.31,177.3,3.06]
[1752972156941,0.04322967,177.33,177.3,3.06]
[1752972157149,3.05322967,177.33,177.3,3.06]
[1752972157348,0.04322967,177.33,177.3,3.06]
[1752972157644,0.04322967,177.33,177.31,5.6367]
[1752972157847,0.04322967,177.33,177.32,3.06]
[1752972160249,3.05322967,177.33,177.32,3.06]
[1752972162151,0.04322967,177.33,177.32,3.06]
[1752972163149,0.04322967,177.33,177.32,8.6964]
[1752972165053,3.01,177.39,177.34,5.6356]
[1752972165253,3.01,177.39,177.35,3.06]
[1752972165852,3.01,177.38,177.35,3.06]
[1752972166244,4.90029836,177.4,177.35,3.06]
[1752972166446,3.01,177.39,177.35,3.1021579]
[1752972166650,3.01,177.39,177.36,3.06]
[1752972167954,5.6348,177.38,177.36,3.06]
[1752972168755,8.6442,177.39,177.36,8.6951]
[1752972169053,8.6442,177.39,177.37,3.06]
[1752972169554,8.644,177.4,177.37,5.6346]
[1752972169755,8.644,177.4,177.38,3.06]
[1752972171251,8.644,177.4,177.37,5.6346]
[1752972171452,8.8243,177.39,177.38,3.11]
[1752972172557,3.19,177.39,177.38,3.11]
[1752972173862,8.8242,177.39,177.38,3.11]
[1752972174357,3.19,177.39,177.38,3.11]
[1752972176052,1.89029836,177.41,177.38,3.11]
[1752972176253,3.19,177.4,177.38,3.11]
[1752972177952,5.08029836,177.39,177.36,3.11]
[1752972178153,3.19,177.38,177.36,3.11]
[1752972178349,3.19,177.37,177.36,3.11]
[1752972178958,10.71469836,177.39,177.36,3.11]
[1752972179158,3.19,177.38,177.36,3.11]
[1752972179461,8.8245,177.38,177.36,3.11]
[1752972179660,3.19,177.37,177.35,0.04257234]
[1752972180259,3.19,177.37,177.36,3.11]
[1752972180559,8.8248,177.37,177.36,3.11]
[1752972181757,3.19,177.37,177.36,3.11]
[1752972182361,8.8248,177.37,177.36,3.11]
[1752972182661,3.19,177.38,177.35,0.04257234]
[1752972183055,5.635,177.37,177.35,3.15257234]
[1752972183250,3.19,177.36,177.35,3.15257234]
[1752972185768,5.6346,177.38,177.35,3.15257234]
[1752972186268,3.19,177.37,177.35,3.15257234]
[1752972187472,3.19,177.37,177.35,0.04257234]
[1752972187675,3.19,177.36,177.35,0.04257234]
[1752972188274,8.8252,177.36,177.35,0.04257234]
[1752972198681,8.8252,177.36,177.35,3.15257234]
[1752972200183,8.8252,177.36,177.35,0.04257234]
[1752972209794,8.8252,177.36,177.35,3.11257234]
[1752972210387,8.6663,177.33,177.32,3.07]
[1752972210587,10.55659836,177.33,177.32,3.07]
[1752972210782,3.03,177.32,177.3,3.07]
[1752972210996,1.89029836,177.31,177.3,3.07]
[1752972211186,4.92029836,177.31,177.3,3.07]
[1752972212690,10.55699836,177.31,177.3,3.07]
[1752972213585,10.55699836,177.31,177.23,103.12]
[1752972213586,5.6377,177.28,177.23,108.7592]
[1752972214093,5.6377,177.28,177.24,3.07]
[1752972214292,5.67773076,177.27,177.24,3.07]
[1752972214488,7.56802912,177.27,177.24,3.07]
[1752972214794,10.59802912,177.27,177.24,3.07]
[1752972215394,8.6684,177.26,177.24,3.07]
[1752972215593,3.03,177.26,177.2,5.64]
[1752972215892,3.03,177.25,177.21,3.07]
[1752972216293,8.6687,177.25,177.21,3.07]
[1752972217196,7.52899836,177.25,177.21,3.07]
[1752972217396,5.639,177.24,177.21,3.07]
[1752972219193,7.52909836,177.25,177.21,3.07]
[1752972219693,1.89029836,177.25,177.21,3.07]
[1752972220290,5.639,177.24,177.21,3.07]
[1752972220495,4.92029836,177.25,177.21,3.07]
[1752972220895,5.6392,177.24,177.21,3.07]
[1752972222998,10.55909836,177.25,177.21,3.07]
[1752972223308,7.52909836,177.25,177.21,3.07]
[1752972223494,4.92029836,177.25,177.21,3.07]
[1752972223700,5.6392,177.24,177.21,3.07]
[1752972224593,5.6387,177.25,177.21,3.07]
[1752972226196,0.03963076,177.27,177.21,106.37]
[1752972226398,0.03963076,177.27,177.22,3.07]
[1752972226800,0.03963076,177.27,177.23,3.07]
[1752972227100,1.20995419,177.26,177.23,3.07]
[1752972227596,1.20995419,177.26,177.23,8.7093]
[1752972227793,1.24958495,177.27,177.24,3.07]
[1752972228496,6.88768495,177.27,177.24,3.07]
[1752972228900,3.03,177.26,177.24,3.07]
[1752972229100,4.96043165,177.27,177.24,3.07]
[1752972229300,3.03,177.25,177.21,103.3]
[1752972229519,4.96043165,177.27,177.21,103.3]
[1752972229904,5.6385,177.26,177.22,3.07]
[1752972230902,5.6385,177.26,177.23,3.06]
[1752972231102,10.59853165,177.27,177.23,3.06]
[1752972233303,5.6384,177.26,177.23,3.06]
[1752972234802,10.59853165,177.27,177.23,8.6993]
[1752972235001,10.59853165,177.27,177.24,3.06]
[1752972235503,7.56853165,177.27,177.24,3.06]
[1752972235899,0.03963076,177.27,177.25,3.06]
[1752972236497,0.03963076,177.27,177.26,5.6383]
[1752972236704,0.03963076,177.27,177.26,8.6983]
[1752972240906,1.89080089,177.31,177.28,5.6375]
[1752972241106,1.89080089,177.31,177.29,3.06]
[1752972241311,3.22,177.32,177.29,3.06]
[1752972242302,3.22,177.32,177.29,3.09800068]
[1752972242504,8.8569,177.31,177.29,3.09800068]
[1752972244213,5.6369,177.31,177.29,3.09800068]
[1752972247136,5.6371,177.3,177.29,3.09800068]
[1752972248620,8.8571,177.3,177.29,3.09800068]
[1752972248915,10.06664229,177.3,177.29,3.09800068]
[1752972250612,4.42954229,177.3,177.29,3.09800068]
[1752972251818,1.20954229,177.3,177.29,3.09800068]
[1752972256218,4.42954229,177.3,177.29,3.09800068]
[1752972257120,3.22,177.29,177.26,3.06]
[1752972257319,4.42954229,177.27,177.26,3.06]
[1752972264227,1.20954229,177.27,177.26,3.06]
[1752972265926,1.20954229,177.29,177.26,3.06]
[1752972266617,1.20954229,177.29,177.26,8.6981]
[1752972266821,4.24954229,177.29,177.27,3.24]
[1752972267623,3.04,177.28,177.27,3.24]
[1752972269027,3.04,177.28,177.26,3.24]
[1752972269228,4.24954229,177.27,177.26,3.24]
[1752972269527,4.24954229,177.27,177.24,3.24]
[1752972269528,3.04,177.26,177.24,3.24]
[1752972269720,3.04,177.25,177.24,3.24]
[1752972271027,4.24954229,177.25,177.24,3.24]
[1752972271223,4.24954229,177.25,177.19,1.20954229]
[1752972271425,3.04,177.22,177.2,3.24]
[1752972272324,6.88707568,177.23,177.2,3.24]
[1752972272532,3.04,177.22,177.2,3.24]
[1752972272831,3.04,177.22,177.2,8.8802]
[1752972273032,1.24767568,177.23,177.21,3.24]
[1752972273928,1.24767568,177.23,177.21,8.8799]
[1752972274426,1.24767568,177.23,177.22,3.24]
[1752972274932,0.03813339,177.23,177.22,3.24]
[1752972275133,3.07813339,177.23,177.22,3.24]
[1752972275927,8.71743339,177.23,177.22,3.24]
[1752972277933,3.07813339,177.23,177.22,3.24]
[1752972279533,8.71743339,177.23,177.22,3.24]
[1752972280735,3.07813339,177.23,177.22,3.24]
[1752972282837,0.03813339,177.23,177.22,3.24]
[1752972283538,0.03813339,177.23,177.22,8.8796]
[1752972289243,3.04,177.28,177.27,3.24]
[1752972290950,3.2,177.29,177.28,3.28]
[1752972291253,3.2,177.3,177.28,3.28]
[1752972291545,3.2,177.3,177.29,3.28]
[1752972292948,8.8371,177.3,177.29,3.28]
[1752972295754,3.2,177.3,177.29,3.28]
[1752972296952,1.20947271,177.3,177.29,3.28]
[1752972297456,5.6365,177.32,177.29,3.28]
[1752972297457,4.40947271,177.32,177.29,3.28]
[1752972297662,1.20947271,177.32,177.29,3.28]
[1752972298153,1.20947271,177.32,177.31,3.28]
[1752972298451,4.40947271,177.32,177.31,3.28]
[1752972298766,10.04587271,177.32,177.31,3.28]
[1752972300457,4.40947271,177.32,177.31,3.28]
[1752972301055,10.04587271,177.32,177.31,3.28]
[1752972303361,4.40947271,177.32,177.31,3.28]
[1752972303564,1.20947271,177.32,177.31,3.28]
[1752972303861,4.40947271,177.32,177.31,3.28]
[1752972304362,10.04587271,177.32,177.31,3.28]
[1752972305662,4.40947271,177.32,177.31,3.28]
[1752972306660,4.40947271,177.32,177.3,0.03788852]
[1752972306863,3.2,177.31,177.3,0.03788852]
[1752972307452,8.8367,177.31,177.3,0.03788852]
[1752972310362,8.8367,177.31,177.3,3.31788852]
[1752972310762,3.2,177.31,177.3,3.31788852]
[1752972312964,8.8367,177.31,177.3,3.31788852]
[1752972314266,3.2,177.31,177.3,3.31788852]
[1752972314862,8.8367,177.31,177.3,3.31788852]
[1752972315062,3.2,177.31,177.3,3.31788852]
[1752972317379,8.8367,177.31,177.3,3.31788852]
[1752972318863,3.2,177.28,177.26,3.28]
[1752972319063,4.40947271,177.27,177.26,3.28]
[1752972321267,1.20947271,177.27,177.26,3.28]
[1752972321769,0.04147498,177.28,177.26,3.28]
[1752972321965,1.25094769,177.28,177.26,3.28]
[1752972322162,0.04147498,177.28,177.26,3.28]
[1752972322565,0.04147498,177.28,177.27,5.638]
[1752972322769,4.29947271,177.32,177.27,1.20947271]
[1752972323070,4.29947271,177.32,177.28,3.04]
[1752972323570,4.29947271,177.32,177.3,3.04]
[1752972324171,1.20947271,177.32,177.3,8.677]
[1752972324371,1.20947271,177.32,177.31,3.04]
[1752972325062,10.61520105,177.34,177.31,3.04]
[1752972327372,8.7261,177.33,177.31,3.04]
[1752972327769,3.09,177.32,177.31,3.04]
[1752972329970,3.09,177.33,177.31,3.04]
[1752972332272,4.97930105,177.34,177.31,3.04]
[1752972334077,138.07663986,177.35,177.31,3.04]
[1752972334776,138.07663986,177.35,177.32,5.6364]
[1752972334976,138.07663986,177.35,177.33,3.04]
[1752972336476,10.61450105,177.36,177.33,3.04]
[1752972336675,3.09,177.36,177.29,0.03714726]
[1752972336878,5.6349,177.37,177.31,3.04]
[1752972337278,5.6349,177.37,177.34,5.6358]
[1752972337473,5.6349,177.37,177.35,3.04]
[1752972337474,8.7249,177.37,177.35,3.04]
[1752972338575,3.09,177.37,177.35,3.04]
[1752972338774,3.09,177.38,177.36,3.04]
[1752972339678,3.09,177.38,177.36,8.6751]
[1752972339881,3.09,177.38,177.37,3.04]
[1752972340678,8.7245,177.38,177.37,3.04]
[1752972343185,5.6342,177.39,177.37,3.04]
[1752972343381,8.7242,177.39,177.37,3.04]
[1752972344981,8.7245,177.38,177.37,3.04]
[1752972345981,3.09,177.38,177.37,3.04]
[1752972346184,3.09,177.39,177.37,3.04]
[1752972347683,10.61330105,177.4,177.37,3.04]
[1752972348387,5.6337,177.41,177.36,3.04]
[1752972348685,8.7237,177.41,177.36,3.04]
[1752972348881,5.6337,177.41,177.36,3.04]
[1752972349086,1.20805149,177.4,177.37,3.04]
[1752972349290,1.20805149,177.4,177.38,5.6344]
[1752972349586,1.20805149,177.4,177.39,3.04]
[1752972350987,5.6337,177.41,177.39,3.04]
[1752972351286,8.8537,177.41,177.39,3.04]
[1752972352991,3.22,177.41,177.39,3.04]
[1752972353594,3.22,177.41,177.39,8.6742]
[1752972353794,10.74088843,177.42,177.4,3.21]
[1752972354086,3.22,177.43,177.4,8.8437]
[1752972354393,3.22,177.43,177.41,3.21]
[1752972354595,3.22,177.42,177.4,0.03833769]
[1752972354986,3.22,177.41,177.4,0.03833769]
[1752972355191,3.22,177.41,177.4,3.24833769]
[1752972355791,3.22,177.43,177.41,3.21]
[1752972356495,3.22,177.43,177.41,8.8435]
[1752972356698,3.22,177.43,177.42,3.21]
[1752972358196,8.8529,177.43,177.42,3.21]
[1752972358392,3.22,177.43,177.42,3.21]
[1752972363904,5.10758843,177.44,177.42,3.21]
[1752972366507,3.22,177.48,177.45,3.21]
[1752972366804,3.22,177.47,177.46,3.21]
[1752972367299,3.22,177.47,177.41,3.21]
[1752972367499,5.10758843,177.42,177.41,3.21]
[1752972368200,3.22,177.41,177.4,3.21]
[1752972368597,5.10758843,177.41,177.4,3.21]
[1752972369810,3.22,177.4,177.3,3.21]
[1752972370012,5.10758843,177.37,177.3,3.21]
[1752972370409,5.10758843,177.37,177.33,3.21]
[1752972370609,0.03986549,177.35,177.33,3.21]
[1752972371804,0.03986549,177.35,177.34,5.6358]
[1752972372007,0.03986549,177.35,177.34,8.8458]
[1752972374513,1.88758843,177.39,177.38,3.21]
[1752972375108,5.10758843,177.39,177.38,3.21]
[1752972376912,4.42858494,177.39,177.38,3.21]
[1752972380212,4.42858494,177.39,177.38,8.8445]
[1752972380911,4.42858494,177.39,177.38,3.21]
[1752972381308,1.20858494,177.39,177.38,3.21]
[1752972381816,1.20858494,177.39,177.38,8.8445]
[1752972382912,1.20858494,177.39,177.38,3.21]
[1752972383812,1.20858494,177.39,177.38,8.8445]
[1752972385314,4.36858494,177.39,177.38,3.21]
[1752972387416,3.16,177.41,177.38,3.21]
[1752972387616,1.20858494,177.39,177.38,3.21]
[1752972389109,1.20858494,177.39,177.38,8.8445]
[1752972391521,1.20858494,177.39,177.38,3.21]
[1752972392719,1.20858494,177.39,177.38,8.8445]
[1752972393318,1.20858494,177.39,177.38,3.21]
[1752972398724,1.20858494,177.39,177.38,8.8445]
[1752972400026,1.20858494,177.39,177.38,3.21]
[1752972402728,1.20858494,177.39,177.38,8.8445]
[1752972404319,3.16,177.41,177.38,8.8445]
[1752972404527,1.20858494,177.39,177.38,5.6345]
[1752972405128,1.20858494,177.39,177.38,8.8045]
[1752972405817,3.16,177.45,177.38,3.17]
[1752972406024,1.20858494,177.4,177.38,3.17]
[1752972406931,1.20858494,177.4,177.39,5.6342]
[1752972407128,1.20858494,177.4,177.39,8.8042]
[1752972410030,1.20858494,177.41,177.39,3.17]
[1752972410730,1.20858494,177.41,177.4,8.9439]
[1752972410928,1.20858494,177.43,177.4,3.31]
[1752972411330,1.20858494,177.43,177.42,3.31]
[1752972412627,1.20858494,177.43,177.42,8.9432]
[1752972412823,1.20858494,177.44,177.42,3.31]
[1752972413226,1.20858494,177.46,177.42,3.31]
[1752972413432,3.27,177.49,177.44,3.31]
[1752972413631,1.20858494,177.46,177.44,3.31]
[1752972414227,1.20858494,177.46,177.44,8.9424]
[1752972414443,1.20858494,177.46,177.45,3.31]
[1752972415826,3.27,177.47,177.45,3.31]
[1752972416030,1.20858494,177.46,177.45,3.31]
[1752972417825,1.20858494,177.46,177.45,8.9423]
[1752972418030,1.20858494,177.49,177.46,3.31]
[1752972418434,1.20858494,177.49,177.47,5.6315]
[1752972418728,1.20858494,177.49,177.48,3.31]
[1752972421435,3.27,177.49,177.48,3.31]
[1752972421638,4.47858494,177.5,177.48,3.31]
[1752972421841,3.27,177.49,177.48,3.31]
[1752972422633,8.901,177.49,177.48,3.31]
[1752972423037,3.27,177.49,177.48,3.31]
[1752972423240,8.901,177.49,177.48,3.31]
[1752972423833,8.9013,177.48,177.47,0.03996948]
[1752972424132,4.47858494,177.48,177.47,0.03996948]
[1752972424335,3.27,177.48,177.47,3.34996948]
[1752972424635,4.47858494,177.48,177.47,3.34996948]
[1752972426038,4.47858494,177.48,177.47,0.03996948]
[1752972426940,10.10988494,177.48,177.47,0.03996948]
[1752972428046,4.47858494,177.48,177.47,0.03996948]
[1752972428642,10.10988494,177.48,177.47,0.03996948]
[1752972429037,4.47858494,177.48,177.47,0.03996948]
[1752972429243,4.47858494,177.48,177.47,3.34996948]
[1752972431641,10.10988494,177.48,177.47,3.34996948]
[1752972432145,10.10988494,177.48,177.47,0.03996948]
[1752972432645,10.10988494,177.48,177.47,3.34996948]
[1752972435044,10.10988494,177.48,177.47,0.03996948]
[1752972438146,1.20858494,177.48,177.47,0.03996948]
[1752972438846,1.20858494,177.48,177.47,3.34996948]
[1752972439744,4.47858494,177.48,177.47,3.34996948]
[1752972443948,10.10988494,177.48,177.47,0.03996948]
[1752972444753,5.6324,177.45,177.4,146.76274732]
[1752972444949,1.20858494,177.43,177.41,5.6335]
[1752972445347,1.20858494,177.43,177.42,3.21]
[1752972446050,3.25,177.44,177.42,3.21]
[1752972446051,1.24513629,177.44,177.43,3.21]
[1752972448048,0.03655135,177.44,177.43,5.6329]
[1752972448247,0.03655135,177.44,177.43,3.21]
[1752972449756,0.03655135,177.44,177.43,8.8429]
[1752972452259,3.25,177.48,177.43,3.21]
[1752972452566,1.20858494,177.47,177.43,3.21]
[1752972453959,1.20858494,177.47,177.46,3.21]
[1752972455066,4.45858494,177.47,177.46,3.21]
[1752972461871,1.20858494,177.47,177.46,3.21]
[1752972464380,4.45858494,177.47,177.46,3.21]
[1752972466980,10.09028494,177.47,177.46,3.21]
[1752972471181,6.84028494,177.47,177.46,3.21]
[1752972471391,9.90028494,177.47,177.46,3.21]
[1752972472678,6.84028494,177.47,177.46,3.21]
[1752972472881,1.20858494,177.47,177.46,3.21]
[1752972474486,9.90008494,177.48,177.46,3.21]
[1752972475502,1.20858494,177.48,177.46,3.21]
[1752972476381,1.20858494,177.48,177.46,8.8419]
[1752972476582,1.20858494,177.48,177.46,3.21]
[1752972477688,1.20858494,177.48,177.46,8.8418]
[1752972477892,1.20858494,177.48,177.47,2.99]
[1752972478389,1.20858494,177.48,177.47,8.6216]
[1752972478987,3.06,177.5,177.48,5.6313]
[1752972479193,8.6906,177.51,177.49,2.99]
[1752972479386,9.89918494,177.51,177.49,2.99]
[1752972479691,4.26858494,177.51,177.49,2.99]
[1752972480087,9.89908494,177.51,177.49,2.99]
[1752972480889,6.32919156,177.55,177.49,5.631]
[1752972481092,3.06,177.54,177.5,2.99]
[1752972481296,1.20858494,177.54,177.5,2.99]
[1752972481594,4.26858494,177.54,177.5,2.99]
[1752972481791,4.26858494,177.54,177.5,3.02661466]
[1752972482087,1.20858494,177.55,177.5,3.02661466]
[1752972482287,3.06,177.56,177.52,2.99]
[1752972482288,1.20858494,177.56,177.52,2.99]
[1752972482592,4.26858494,177.58,177.56,2.99]
[1752972483287,1.20858494,177.58,177.56,8.6187]
[1752972483489,1.20858494,177.58,177.57,2.99]
[1752972484293,6.83678494,177.58,177.57,2.99]
[1752972484796,9.89678494,177.58,177.57,2.99]
[1752972484997,8.6882,177.58,177.57,2.99]
[1752972485799,3.06,177.58,177.57,2.99]
[1752972485995,4.94395324,177.58,177.55,0.03632806]
[1752972486196,3.06,177.56,177.55,0.03632806]
[1752972486501,4.94395324,177.56,177.55,0.03632806]
[1752972486794,10.57275324,177.56,177.55,0.03632806]
[1752972487495,4.94395324,177.56,177.55,0.03632806]
[1752972488296,4.94395324,177.56,177.55,3.02632806]
[1752972489698,10.57275324,177.56,177.55,3.02632806]
[1752972490693,10.57275324,177.56,177.55,0.03632806]
[1752972491497,10.57275324,177.56,177.55,3.02632806]
[1752972491799,4.94395324,177.56,177.55,3.02632806]
[1752972492101,3.06,177.56,177.55,3.02632806]
[1752972493597,3.06,177.57,177.55,3.02632806]
[1752972495099,3.06,177.59,177.55,3.02632806]
[1752972495499,3.06,177.59,177.56,5.6288]
[1752972495700,3.06,177.59,177.57,2.99]
[1752972496300,3.06,177.6,177.57,2.99]
[1752972496500,3.06,177.6,177.58,2.99]
[1752972497894,3.06,177.6,177.59,2.99]
[1752972502314,4.94395324,177.6,177.57,3.25]
[1752972502502,2.99,177.59,177.56,3.25]
[1752972502708,2.99,177.58,177.56,8.8787]
[1752972502907,2.99,177.59,177.57,3.25]
[1752972503910,8.6179,177.59,177.57,3.25]
[1752972504205,2.99,177.58,177.57,3.25]
[1752972504412,2.99,177.6,177.57,3.25]
[1752972504608,4.87395324,177.6,177.57,3.25]
[1752972505207,10.50165324,177.6,177.57,3.25]
[1752972505905,7.51165324,177.6,177.57,3.25]
[1752972506208,2.99,177.59,177.57,3.25]
[1752972506509,2.99,177.6,177.58,3.25]
[1752972506899,8.6175,177.6,177.58,3.25]
[1752972508113,2.99,177.6,177.58,3.25]
[1752972509313,2.99,177.59,177.58,3.25]
[1752972510011,2.99,177.59,177.56,3.25]
[1752972510713,2.99,177.59,177.57,3.25]
[1752972511011,2.99,177.59,177.56,5.6287]
[1752972511211,2.99,177.59,177.58,3.25]
[1752972512211,8.6182,177.59,177.56,3.25]
[1752972512509,2.99,177.58,177.56,3.25]
[1752972513910,2.99,177.58,177.57,3.25]
[1752972518912,5.6285,177.57,177.55,0.03632806]
[1752972519115,2.99,177.56,177.55,0.03632806]
[1752972519609,8.6188,177.56,177.55,3.28632806]
[1752972520210,2.99,177.56,177.55,3.28632806]
[1752972520404,4.19569395,177.57,177.55,3.28632806]
[1752972520612,1.20569395,177.57,177.55,3.28632806]
[1752972521015,1.20569395,177.58,177.55,5.66522806]
[1752972521209,1.20569395,177.58,177.56,3.25]
[1752972522112,9.82339395,177.6,177.56,3.25]
[1752972523015,4.19569395,177.6,177.56,3.25]
[1752972523312,1.20569395,177.61,177.56,3.25]
[1752972523516,4.19569395,177.61,177.59,3.25]
[1752972524013,9.82289395,177.61,177.59,3.25]
[1752972524820,2.99,177.59,177.58,0.03704888]
[1752972525212,2.99,177.59,177.58,3.28704888]
[1752972527321,8.6179,177.59,177.58,3.28704888]
[1752972528122,8.6179,177.59,177.58,0.03704888]
[1752972528821,8.6179,177.59,177.58,3.28704888]
[1752972529422,8.6179,177.59,177.58,0.03704888]
[1752972534020,5.6279,177.59,177.58,3.23704888]
[1752972537630,8.8979,177.59,177.58,3.23704888]